bitfinex/quotes_ETHUSD_20251218
["timestamp","ask_amount","ask_price","bid_price","bid_amount"]
[1766058692403,0.578,2859.8,2859.3,0.9275]
[1766058692803,4.07439548,2860.1,2859.4,0.9275]
[1766058693114,0.578,2860.0,2859.4,0.9275]
[1766058693302,0.578,2859.9,2859.4,0.9275]
[1766058693994,0.58,2859.9,2859.4,0.9275]
[1766058694811,0.58,2859.9,2859.4,1.4795]
[1766058695002,0.58,2859.9,2859.5,0.9275]
[1766058697712,1.132,2860.2,2859.7,0.9275]
[1766058697881,0.554,2860.2,2859.7,6.61208363]
[1766058698210,0.554,2860.2,2859.8,0.9275]
[1766058698211,0.002,2860.2,2859.8,0.9275]
[1766058702415,0.002,2859.9,2859.8,0.9275]
[1766058702715,0.002,2860.2,2859.8,0.9375]
[1766058704118,4.05341323,2860.7,2860.1,0.9375]
[1766058704418,0.5577,2860.7,2860.2,6.61208363]
[1766058704623,4.05316742,2860.9,2860.3,0.9375]
[1766058704784,0.90891504,2860.8,2860.3,0.9375]
[1766058705218,0.5577,2860.9,2860.3,0.9375]
[1766058706322,0.5577,2860.9,2860.3,3.49612892]
[1766058706526,1.5406,2861.0,2860.3,3.49612892]
[1766058706527,0.002,2861.0,2860.5,0.9375]
[1766058708190,0.002,2861.0,2860.7,0.9375]
[1766058709691,0.0012,2861.0,2860.7,0.9375]
[1766058714024,1.5455,2861.0,2860.6,0.552]
[1766058714624,0.5577,2860.7,2860.5,0.552]
[1766058715023,0.9866,2860.8,2860.5,0.552]
[1766058715927,0.5577,2860.7,2860.2,0.552]
[1766058716131,0.5577,2860.7,2860.3,0.9375]
[1766058716903,1.5443,2860.9,2860.3,0.9375]
[1766058717103,0.5577,2860.7,2860.3,0.9375]
[1766058719413,0.0012,2861.0,2860.3,0.9375]
[1766058719613,0.5577,2860.9,2860.3,0.9375]
[1766058721503,0.5577,2860.8,2860.2,0.552]
[1766058721803,0.59107741,2860.7,2860.0,0.46438023]
[1766058722010,0.9866,2860.6,2860.1,0.552]
[1766058722306,0.59107741,2860.5,2860.1,0.552]
[1766058722539,0.9866,2860.4,2859.9,0.552]
[1766058722702,0.5577,2860.3,2859.9,0.77644584]
[1766058723056,0.9866,2860.4,2859.9,0.552]
[1766058723209,0.9866,2860.4,2860.0,0.9375]
[1766058723412,1.5443,2860.4,2860.0,0.9375]
[1766058723618,1.5443,2860.4,2860.3,0.001]
[1766058725849,0.5577,2860.1,2859.7,0.9375]
[1766058726052,0.5577,2860.1,2859.7,1.4895]
[1766058726546,0.5577,2860.1,2859.7,0.9375]
[1766058726747,0.5577,2860.0,2859.7,0.552]
[1766058726951,0.5577,2859.9,2859.7,0.552]
[1766058727747,0.5577,2859.9,2859.5,0.001]
[1766058727930,1.5443,2859.9,2859.5,0.9385]
[1766058728335,0.9866,2859.9,2859.5,0.001]
[1766058728540,0.5577,2859.7,2859.5,0.001]
[1766058729960,0.5577,2859.3,2859.2,0.001]
[1766058730155,0.9866,2859.4,2859.2,0.001]
[1766058730460,0.5577,2859.5,2859.2,0.001]
[1766058734143,1.4905,2859.5,2859.2,0.001]
[1766058734343,1.4897,2859.5,2859.2,0.001]
[1766058734962,0.9328,2859.5,2859.2,0.001]
[1766058736428,1.5252,2859.5,2859.2,0.001]
[1766058736630,0.5924,2859.5,2859.2,0.001]
[1766058736829,1.5338,2859.7,2859.2,0.9799]
[1766058737147,1.74238,2859.7,2859.2,0.9799]
[1766058737325,0.5924,2859.6,2859.2,0.9799]
[1766058737731,1.5338,2859.6,2859.2,0.001]
[1766058740864,0.5924,2859.6,2859.2,0.9799]
[1766058741849,0.20858,2859.7,2859.2,1.154]
[1766058742160,1.1444,2859.8,2859.2,1.154]
[1766058742530,2.0858,2859.8,2859.2,1.154]
[1766058743259,0.5924,2859.7,2859.2,0.9799]
[1766058743557,1.5338,2859.7,2859.2,0.9799]
[1766058744871,0.9414,2859.7,2859.2,0.9799]
[1766058745049,0.5924,2859.6,2859.2,0.9799]
[1766058746941,0.5972062,2859.7,2859.2,0.9799]
[1766058747141,0.552,2859.8,2859.4,0.9789]
[1766058747367,0.552,2859.8,2859.4,1.1538]
[1766058748371,0.5924,2859.7,2859.2,1.1549]
[1766058749858,0.552,2859.8,2859.4,0.9789]
[1766058750058,0.552,2859.8,2859.4,1.1542]
[1766058750254,0.552,2859.8,2859.4,0.9789]
[1766058750573,2.0858,2859.8,2859.4,0.9789]
[1766058750772,2.0878,2859.8,2859.4,0.9789]
[1766058750975,2.0878,2859.8,2859.2,0.64176033]
[1766058751146,0.03337741,2859.7,2859.2,1.1552]
[1766058751575,2.0878,2859.8,2859.2,1.1552]
[1766058754264,0.03337741,2859.7,2859.2,1.1552]
[1766058755664,2.0878,2859.8,2859.2,1.1552]
[1766058755870,2.0878,2859.8,2859.4,0.9789]
[1766058756081,1.1464,2859.8,2859.4,0.9789]
[1766058759190,1.1456,2859.8,2859.4,0.9789]
[1766058760683,4.64235142,2859.8,2859.4,0.9789]
[1766058760889,2.087,2859.8,2859.4,0.9789]
[1766058762391,2.1018,2859.8,2859.3,0.9405]
[1766058764192,2.1018,2859.8,2859.4,0.001]
[1766058764890,0.6072,2859.7,2859.4,0.001]
[1766058769195,0.5532,2859.8,2859.4,0.9415]
[1766058771178,0.5532,2859.8,2859.4,1.1193]
[1766058775297,1.1604,2859.8,2859.4,0.9415]
[1766058776796,5.64695218,2859.8,2859.4,0.9415]
[1766058776998,0.64057741,2859.7,2859.4,0.001]
[1766058777499,0.6072,2859.6,2859.4,0.001]
[1766058777672,1.597,2859.6,2859.4,0.001]
[1766058779098,0.6072,2859.6,2859.4,0.001]
[1766058780901,4.04994883,2859.8,2859.4,0.001]
[1766058781107,0.5532,2859.8,2859.4,0.9415]
[1766058781407,2.1502,2859.8,2859.4,0.9415]
[1766058781585,0.6072,2859.7,2859.4,0.001]
[1766058782907,0.002,2859.8,2859.5,0.9405]
[1766058783097,0.002,2859.8,2859.5,1.1193]
[1766058783776,0.554,2859.9,2859.5,1.1193]
[1766058784009,0.554,2859.9,2859.4,0.001]
[1766058784010,0.554,2859.9,2859.7,0.9405]
[1766058785117,0.554,2859.9,2859.6,0.1776]
[1766058785118,0.554,2859.9,2859.4,0.001]
[1766058785318,5.64766457,2859.9,2859.4,0.001]
[1766058785684,0.6072,2859.8,2859.4,0.001]
[1766058786301,0.6092,2859.8,2859.4,0.001]
[1766058786497,0.002,2859.8,2859.4,0.001]
[1766058786705,0.9898,2859.7,2859.4,0.001]
[1766058786907,0.6092,2859.8,2859.4,0.001]
[1766058787414,1.599,2859.8,2859.4,0.001]
[1766058789111,0.9918,2859.8,2859.4,0.001]
[1766058789306,1.599,2859.8,2859.4,0.001]
[1766058789701,0.6072,2859.7,2859.4,0.001]
[1766058792324,1.597,2859.7,2859.4,0.001]
[1766058792893,1.5562,2859.7,2859.4,0.001]
[1766058793212,0.6072,2859.7,2859.4,0.001]
[1766058795222,0.002,2859.8,2859.4,0.001]
[1766058795518,0.5633,2859.8,2859.4,0.001]
[1766058795719,1.5123,2859.8,2859.4,0.001]
[1766058796118,5.00905905,2859.8,2859.4,0.001]
[1766058796301,0.5613,2859.5,2859.2,0.001]
[1766058796900,0.5613,2859.5,2859.2,0.9895]
[1766058797098,0.5613,2859.7,2859.2,0.9895]
[1766058797496,0.5613,2859.7,2859.2,1.1694]
[1766058798824,0.5613,2859.7,2859.4,0.001]
[1766058802224,5.00717212,2859.7,2859.4,0.001]
[1766058802525,0.5613,2859.6,2859.4,0.001]
[1766058804998,1.5103,2859.6,2859.2,0.001]
[1766058805198,0.5613,2859.5,2859.2,0.001]
[1766058805706,0.5613,2859.5,2859.4,0.001]
[1766058808426,0.9482,2859.6,2859.4,0.001]
[1766058808632,0.5633,2859.7,2859.4,0.001]
[1766058808812,0.002,2859.7,2859.4,0.9895]
[1766058810531,0.5633,2859.7,2859.4,0.001]
[1766058811528,1.5123,2859.7,2859.4,0.001]
[1766058813232,0.5633,2859.7,2859.4,0.001]
[1766058818628,1.5103,2859.6,2859.4,0.001]
[1766058819149,0.5613,2859.6,2859.4,0.001]
[1766058819743,0.002,2859.7,2859.4,0.001]
[1766058822834,0.002,2859.7,2859.4,0.946]
[1766058823654,0.5637,2859.7,2859.4,0.001]
[1766058828369,0.002,2859.9,2859.7,0.945]
[1766058828565,0.554,2859.9,2859.7,0.945]
[1766058829569,0.002,2859.9,2859.7,0.945]
[1766058830375,0.552,2860.2,2859.7,1.1209]
[1766058830557,4.04826993,2860.2,2859.7,1.1209]
[1766058831072,1.1137,2860.2,2859.7,1.1209]
[1766058831856,0.552,2860.2,2859.7,1.1209]
[1766058832171,0.552,2860.5,2860.1,0.945]
[1766058832365,1.1137,2860.5,2860.1,0.945]
[1766058832568,5.56450704,2860.5,2860.1,0.945]
[1766058833070,0.5617,2860.4,2859.8,0.1732]
[1766058833274,0.5609,2860.3,2859.8,1.99394437]
[1766058833949,0.5609,2860.3,2859.9,0.945]
[1766058835451,0.5609,2860.3,2859.9,0.946]
[1766058835974,1.5158,2860.3,2859.9,0.946]
[1766058843380,0.554,2860.5,2859.9,0.001]
[1766058843588,0.554,2860.5,2859.9,1.20472432]
[1766058843883,0.002,2860.5,2860.0,6.61316345]
[1766058845483,0.002,2860.5,2860.0,1.05037051]
[1766058850095,0.002,2860.5,2860.0,0.001]
[1766058851192,0.002,2860.5,2860.0,3.49749342]
[1766058851395,0.002,2860.5,2860.1,0.45488639]
[1766058852093,0.002,2860.5,2860.1,1.00688639]
[1766058852300,0.002,2860.5,2860.1,0.552]
[1766058855987,0.002,2860.5,2860.1,4.04837808]
[1766058857689,0.002,2860.5,2860.1,3.49637808]
[1766058857870,0.0012,2860.5,2860.2,1.05030432]
[1766058860792,0.002,2860.9,2860.2,11.15523135]
[1766058861078,0.002,2860.9,2860.3,1.17072313]
[1766058861504,0.002,2860.9,2860.3,1.31075341]
[1766058861699,0.002,2860.9,2860.3,1.17072313]
[1766058861900,0.002,2860.9,2860.4,0.14002685]
[1766058862477,0.002,2860.9,2860.4,3.63596789]
[1766058862676,0.002,2860.9,2860.5,0.83027891]
[1766058863405,0.002,2860.9,2860.6,0.14002685]
[1766058865299,0.0012,2861.0,2860.6,3.63579687]
[1766058865801,0.0012,2861.0,2860.6,0.14002685]
[1766058866006,0.002,2861.4,2860.8,6.60866803]
[1766058866305,4.04848114,2861.7,2861.2,6.60866803]
[1766058866306,0.002,2861.7,2861.2,6.60866803]
[1766058866684,0.002,2861.7,2861.3,0.552]
[1766058866894,0.002,2861.7,2861.3,1.2680668]
[1766058867702,0.002,2861.7,2861.3,4.76295822]
[1766058868606,0.002,2861.7,2861.3,1.2680668]
[1766058868811,0.002,2861.7,2861.3,4.76297632]
[1766058869397,0.002,2862.1,2861.5,6.60866803]
[1766058869602,0.002,2862.1,2861.6,0.62598456]
[1766058870118,0.002,2862.1,2861.6,1.67576331]
[1766058874119,0.002,2862.1,2861.5,5.00884102]
[1766058874619,0.002,2862.1,2861.5,1.51420674]
[1766058874826,0.002,2862.1,2861.5,1.04982651]
[1766058875207,0.002,2862.1,2861.4,0.552]
[1766058875406,0.002,2862.1,2861.4,1.60182651]
[1766058876105,0.03537741,2862.1,2861.4,1.60182651]
[1766058877352,0.03537741,2862.1,2861.4,0.552]
[1766058877519,0.70230093,2862.0,2861.4,0.552]
[1766058878538,4.19636944,2862.0,2861.4,0.552]
[1766058878739,4.19636944,2862.0,2861.2,1.04989999]
[1766058879109,4.19836944,2862.0,2861.2,1.04989999]
[1766058879511,0.70430093,2862.0,2861.2,1.04989999]
[1766058880223,0.70430093,2862.0,2861.2,5.10101591]
[1766058880422,0.002,2862.0,2861.2,8.59605295]
[1766058881717,0.002,2862.0,2861.2,7.54615296]
[1766058882043,0.002,2862.0,2861.5,3.49467062]
[1766058882246,0.002,2862.0,2861.4,10.10341479]
[1766058882619,0.0012,2862.0,2861.5,0.552]
[1766058882838,0.0012,2862.0,2861.6,1.41502075]
[1766058883440,0.0012,2862.0,2861.7,1.04977875]
[1766058888623,0.0012,2862.0,2861.5,0.552]
[1766058888834,0.0012,2862.0,2861.4,0.46438023]
[1766058889035,0.0012,2862.0,2861.6,1.04977875]
[1766058889250,0.0012,2862.0,2861.4,0.46438023]
[1766058889251,0.0012,2862.0,2861.5,3.49466926]
[1766058889449,0.0012,2862.0,2861.5,5.28987729]
[1766058889745,0.0012,2862.0,2861.5,1.79520803]
[1766058890052,0.0012,2862.0,2861.5,5.28986111]
[1766058890546,0.0012,2862.0,2861.5,1.79520803]
[1766058890847,0.0012,2862.0,2861.5,1.04982284]
[1766058891146,0.0012,2862.0,2861.2,0.46438023]
[1766058891345,0.0012,2862.0,2861.3,0.43888141]
[1766058891851,0.58537741,2861.9,2861.0,0.552]
[1766058892045,0.58537741,2861.9,2861.0,1.01638023]
[1766058892253,0.58537741,2861.9,2861.4,0.001]
[1766058892758,4.07961171,2861.9,2861.4,0.001]
[1766058892921,0.46661891,2861.8,2861.4,0.001]
[1766058895833,0.552,2861.9,2861.4,0.001]
[1766058896849,4.0462384,2861.9,2861.4,0.001]
[1766058899156,0.552,2861.9,2861.4,0.001]
[1766058902833,0.0012,2862.0,2861.4,0.001]
[1766058905537,0.5569,2861.9,2861.4,0.9229]
[1766058906137,1.513,2861.9,2861.4,0.9229]
[1766058907505,1.5122,2861.9,2861.4,0.9229]
[1766058910167,0.9573,2862.0,2861.4,0.9229]
[1766058910365,0.9573,2862.0,2861.4,1.0508]
[1766058910566,0.5569,2861.9,2861.4,1.56404101]
[1766058910770,0.5569,2861.9,2861.4,1.0508]
[1766058912045,1.513,2861.9,2861.4,1.0508]
[1766058914176,1.5083,2861.8,2861.4,0.9229]
[1766058914553,0.0012,2862.0,2861.4,0.001]
[1766058914741,1.5083,2861.7,2861.4,0.001]
[1766058914946,0.5504,2862.0,2861.5,0.9012]
[1766058915161,0.5492,2861.9,2861.5,0.9012]
[1766058915546,1.5083,2861.9,2861.5,0.9012]
[1766058917374,0.9591,2861.9,2861.4,0.001]
[1766058917577,0.5492,2861.8,2861.4,0.001]
[1766058917880,0.5492,2861.8,2861.4,0.9022]
[1766058918050,0.5492,2861.8,2861.4,1.35440031]
[1766058918252,0.0012,2862.0,2861.5,1.0256]
[1766058918667,1.5095,2862.0,2861.5,1.0256]
[1766058918885,0.5492,2861.9,2861.5,0.9012]
[1766058920079,1.5083,2861.9,2861.5,0.9012]
[1766058923351,0.0012,2862.0,2861.5,1.0241]
[1766058923549,0.5504,2862.0,2861.5,1.0241]
[1766058923763,1.5095,2862.0,2861.5,1.0241]
[1766058924781,0.0012,2862.0,2861.8,0.9012]
[1766058924954,0.002,2862.1,2861.9,0.9012]
[1766058932088,0.0012,2862.1,2861.9,0.9012]
[1766058933287,0.5504,2862.1,2861.6,0.9012]
[1766058933674,0.5504,2862.1,2861.6,1.02]
[1766058933874,0.5504,2862.1,2861.7,1.39796401]
[1766058934476,0.0012,2862.1,2861.7,0.49676401]
[1766058934675,0.0012,2862.1,2861.8,0.9012]
[1766058935061,0.5492,2862.5,2861.9,1.0183]
[1766058935267,0.9591,2862.4,2861.9,1.71307502]
[1766058935467,0.5492,2862.3,2861.9,0.9012]
[1766058935869,1.5083,2862.3,2861.9,0.9012]
[1766058937888,0.5492,2862.2,2861.7,1.0183]
[1766058941702,0.9611,2862.3,2861.7,1.0183]
[1766058941907,1.5103,2862.3,2861.7,1.0183]
[1766058942206,0.5492,2862.2,2861.7,0.9012]
[1766058942423,0.5464,2862.1,2861.7,0.9012]
[1766058943210,1.4907,2862.1,2861.7,0.9012]
[1766058944307,0.5464,2862.1,2861.7,0.9012]
[1766058945510,0.9463,2862.3,2861.7,0.49634314]
[1766058945711,0.9463,2862.3,2861.6,0.1146]
[1766058945712,1.4907,2862.2,2861.6,0.9075]
[1766058946021,1.4907,2862.2,2861.6,1.0219]
[1766058946391,1.4907,2862.2,2861.7,0.1141]
[1766058946591,1.4907,2862.2,2861.8,0.9075]
[1766058947536,0.002,2862.3,2861.5,10.55127378]
[1766058947708,3.49570513,2862.3,2861.5,7.05667334]
[1766058947898,0.5464,2862.1,2861.6,0.9075]
[1766058948215,0.5464,2862.1,2861.6,1.31479059]
[1766058948419,0.5464,2862.1,2861.7,0.9075]
[1766058949931,0.002,2862.3,2861.6,1.31579059]
[1766058949932,0.002,2862.3,2861.8,0.1134]
[1766058950108,0.002,2862.3,2861.9,0.9075]
[1766058950434,0.5484,2862.3,2861.9,0.9075]
[1766058953624,1.4927,2862.3,2861.9,0.9075]
[1766058953824,0.5484,2862.3,2861.9,0.9075]
[1766058954606,1.4927,2862.3,2861.9,0.9075]
[1766058955728,1.4907,2862.2,2861.7,0.9075]
[1766058955927,1.4907,2862.2,2861.7,1.17496778]
[1766058956124,0.002,2862.3,2861.7,1.17496778]
[1766058956125,0.002,2862.3,2861.8,7.5092456]
[1766058956299,0.002,2862.3,2862.1,0.9075]
[1766058956698,0.002,2862.3,2861.9,0.9075]
[1766058956914,0.0012,2862.3,2861.9,0.9075]
[1766058957119,0.5476,2862.3,2861.9,0.9085]
[1766058963437,0.5476,2862.3,2861.9,1.38671871]
[1766058964212,0.5476,2862.3,2861.9,0.9085]
[1766058967434,1.4919,2862.3,2861.9,0.9085]
[1766058971652,0.9455,2862.3,2861.9,0.9085]
[1766058971830,0.9443,2862.2,2861.9,0.001]
[1766058972034,1.4907,2862.2,2861.9,0.001]
[1766058975944,0.5464,2862.2,2861.9,0.001]
[1766058976652,0.0012,2862.3,2861.9,0.935]
[1766058979434,0.5656,2862.3,2861.9,0.935]
[1766058981479,1.5182,2862.3,2861.9,0.935]
[1766058981774,1.5174,2862.3,2861.9,0.935]
[1766058982657,0.5648,2862.3,2861.9,0.935]
[1766058984860,0.0004,2862.3,2861.9,0.935]
[1766058985071,0.0004,2862.3,2862.1,0.934]
[1766058985945,0.0004,2862.3,2862.1,1.0398]
[1766058986150,0.0004,2862.3,2862.1,0.934]
[1766058986358,0.0004,2862.3,2861.9,0.67773779]
[1766058986576,0.0004,2862.3,2861.9,1.61173779]
[1766058986869,0.0004,2862.3,2862.0,0.934]
[1766058988440,0.0004,2862.3,2861.9,0.001]
[1766058988441,1.5174,2862.3,2861.9,0.001]
[1766058988637,0.9526,2862.2,2861.9,0.001]
[1766058988840,0.5644,2862.1,2861.9,0.001]
[1766058989263,0.9526,2862.2,2861.9,0.001]
[1766058991072,0.5648,2862.3,2861.9,0.001]
[1766058991273,0.5648,2862.3,2861.9,0.935]
[1766058991452,0.0004,2862.3,2861.9,1.0399]
[1766058993076,0.0004,2862.3,2861.9,1.0396]
[1766058997603,0.5648,2862.3,2861.9,0.935]
[1766058998391,0.9526,2862.2,2861.9,0.001]
[1766058998552,1.517,2861.9,2861.6,0.552]
[1766058998874,0.5644,2861.9,2861.6,0.552]
[1766058999576,1.517,2861.6,2861.1,0.46438023]
[1766058999987,1.517,2861.6,2861.1,1.93468023]
[1766059001349,1.55037741,2861.5,2860.9,0.934]
[1766059001566,0.5644,2861.3,2860.9,1.4703]
[1766059001967,1.517,2861.3,2860.9,0.934]
[1766059002293,1.517,2861.2,2860.7,1.4713]
[1766059002871,1.4827,2861.4,2860.7,0.001]
[1766059003186,1.0501205,2861.4,2860.7,0.001]
[1766059003389,0.5772,2861.2,2860.7,1.4835]
[1766059005478,0.5772,2861.2,2860.7,0.001]
[1766059005679,1.6273205,2861.4,2861.0,0.9367]
[1766059005902,0.76213774,2861.5,2861.0,1.4825]
[1766059006192,0.5512,2861.5,2860.8,3.49552486]
[1766059006377,0.5512,2861.5,2860.9,0.5458]
[1766059006578,1.1284,2861.5,2861.0,1.4825]
[1766059007206,2.0339,2861.5,2861.0,1.4825]
[1766059007502,4.70373234,2861.5,2860.7,0.001]
[1766059007687,1.4827,2861.4,2860.7,0.9377]
[1766059007870,0.5772,2861.3,2860.7,1.4835]
[1766059008066,1.4827,2861.3,2860.7,0.5468]
[1766059008270,1.4827,2861.3,2860.8,1.4825]
[1766059008686,0.5772,2861.3,2860.7,0.001]
[1766059008888,0.5512,2861.5,2860.8,0.5458]
[1766059009170,0.9055,2861.4,2860.9,0.9367]
[1766059009374,0.5772,2861.3,2860.9,0.9367]
[1766059009995,0.5772,2861.3,2860.9,1.4825]
[1766059012297,0.9055,2861.4,2860.9,1.4825]
[1766059012800,1.1284,2861.5,2860.8,1.4825]
[1766059013098,1.1284,2861.5,2860.9,0.5458]
[1766059013301,1.1284,2861.5,2861.0,0.9367]
[1766059013491,1.1284,2861.5,2861.0,1.4825]
[1766059014202,2.0339,2861.5,2861.0,1.4825]
[1766059016599,0.5512,2861.5,2860.9,0.9377]
[1766059016800,1.4827,2861.4,2860.9,0.9377]
[1766059017000,1.4827,2861.4,2860.9,1.4835]
[1766059017492,0.5772,2861.3,2860.9,1.4835]
[1766059020580,1.4827,2861.3,2860.9,0.001]
[1766059021904,1.4827,2861.3,2860.9,0.9377]
[1766059022076,1.4827,2861.3,2860.9,1.4835]
[1766059023004,0.5772,2861.3,2860.9,1.4835]
[1766059024609,2.0359,2861.5,2861.0,0.9367]
[1766059026679,2.0359,2861.5,2861.0,1.4825]
[1766059027081,0.5532,2861.5,2861.0,1.4825]
[1766059027723,1.1304,2861.5,2861.0,1.4825]
[1766059029310,1.1304,2861.5,2860.9,0.001]
[1766059029311,0.9055,2861.4,2860.9,0.9377]
[1766059029511,1.4827,2861.4,2860.9,1.4835]
[1766059029808,1.4827,2861.4,2860.9,0.5468]
[1766059030012,1.4827,2861.4,2860.9,1.4835]
[1766059031087,1.4819,2861.4,2860.9,1.4835]
[1766059051944,0.5772,2861.4,2860.9,1.5358]
[1766059052238,0.9024,2861.4,2860.9,1.5358]
[1766059052407,0.5722,2861.3,2860.9,1.5358]
[1766059052608,1.4746,2861.3,2860.9,1.5358]
[1766059055961,1.4738,2861.3,2860.9,1.5358]
[1766059056862,0.5714,2861.3,2860.9,1.5358]
[1766059059662,0.9044,2861.4,2860.9,1.5358]
[1766059059844,0.002,2861.4,2861.0,1.5348]
[1766059065957,0.5455,2861.4,2861.0,0.9796]
[1766059066156,0.9738,2861.4,2860.9,0.001]
[1766059066361,0.5435,2861.3,2860.9,0.001]
[1766059070358,0.5435,2861.3,2860.9,0.9048]
[1766059072470,0.5455,2861.3,2860.9,0.9048]
[1766059076671,0.002,2861.3,2860.9,0.9048]
[1766059076873,0.002,2861.3,2861.0,1.473]
[1766059078771,0.002,2861.3,2860.9,0.001]
[1766059079541,0.002,2861.3,2860.9,1.2050043]
[1766059080045,0.002,2861.3,2860.9,2.1088043]
[1766059080369,0.0012,2861.3,2860.9,2.1088043]
[1766059082876,0.5447,2861.3,2860.9,2.1088043]
[1766059083066,0.5447,2861.3,2860.9,0.9048]
[1766059083772,0.5447,2861.3,2860.9,1.474]
[1766059084073,0.0012,2861.3,2860.9,0.5702]
[1766059084278,0.0012,2861.3,2861.0,0.9038]
[1766059084780,0.0012,2861.3,2861.0,1.473]
[1766059086476,0.0012,2861.3,2861.1,0.9038]
[1766059086646,0.0012,2861.3,2861.1,1.473]
[1766059087176,0.002,2861.5,2861.1,1.473]
[1766059087475,0.552,2861.7,2861.3,1.473]
[1766059087673,0.552,2861.7,2861.3,0.9038]
[1766059087878,0.552,2861.7,2861.3,1.65468472]
[1766059088265,0.552,2861.7,2861.3,0.9038]
[1766059088466,1.0955,2861.7,2861.3,0.9038]
[1766059088667,2.0673,2861.7,2861.3,0.9038]
[1766059095181,2.0673,2861.7,2861.2,1.4981]
[1766059096086,2.0673,2861.7,2861.3,0.001]
[1766059096282,2.0693,2861.7,2861.3,0.60541858]
[1766059099379,2.0693,2861.7,2861.3,1.53431858]
[1766059099790,1.0975,2861.7,2861.3,1.53431858]
[1766059100291,0.554,2861.7,2861.3,1.53431858]
[1766059100497,0.554,2861.7,2861.4,0.9289]
[1766059100795,0.554,2861.7,2861.4,1.4862]
[1766059103995,0.554,2861.7,2861.4,0.9289]
[1766059105097,0.5532,2861.7,2861.4,0.9289]
[1766059106796,0.5532,2861.7,2861.4,1.4862]
[1766059106996,0.5532,2861.7,2861.4,1.98442245]
[1766059108504,0.5532,2861.7,2861.3,0.001]
[1766059108675,0.5532,2861.7,2861.3,0.9299]
[1766059110584,0.5532,2861.7,2861.3,1.4872]
[1766059115102,0.5532,2861.7,2861.4,1.4862]
[1766059116205,0.5532,2861.7,2861.5,0.9289]
[1766059118189,0.5532,2861.7,2861.4,0.5573]
[1766059119503,0.002,2861.7,2861.5,1.4862]
[1766059121006,0.002,2861.7,2861.5,0.9289]
[1766059121586,0.002,2861.7,2861.4,0.001]
[1766059122873,0.002,2861.7,2861.4,1.5371]
[1766059123111,0.002,2861.7,2861.4,2.14539083]
[1766059125479,0.551,2861.9,2861.5,1.5361]
[1766059126512,1.0916,2861.9,2861.5,1.5361]
[1766059126895,0.551,2861.9,2861.4,0.001]
[1766059127095,0.551,2861.9,2861.6,1.5361]
[1766059128312,0.002,2861.7,2861.6,1.5361]
[1766059129810,0.0012,2861.7,2861.6,1.5361]
[1766059134407,0.9149,2862.1,2861.7,0.9997]
[1766059134607,1.56600322,2862.1,2861.7,0.9997]
[1766059135008,2.10660322,2862.1,2861.7,0.9997]
[1766059136329,2.10660322,2862.1,2861.7,1.5361]
[1766059136535,0.5406,2862.1,2861.7,1.5361]
[1766059136734,1.95699061,2862.3,2861.7,1.5361]
[1766059136918,0.551,2862.1,2861.7,1.5361]
[1766059138344,1.0916,2862.1,2861.7,1.5361]
[1766059138638,2.1414706,2862.1,2861.7,1.5361]
[1766059139341,0.541,2862.3,2861.7,1.03957252]
[1766059139558,0.551,2862.2,2861.8,0.9997]
[1766059140439,1.0916,2862.2,2861.8,0.9997]
[1766059144155,1.0936,2862.2,2861.8,0.9997]
[1766059146845,0.5406,2862.1,2861.7,1.03957252]
[1766059147144,0.5406,2862.1,2861.7,2.03927252]
[1766059148643,1.4679,2862.2,2861.7,2.03927252]
[1766059149947,0.553,2862.2,2861.7,2.03927252]
[1766059150133,0.553,2862.2,2861.7,0.50317252]
[1766059150328,0.553,2862.2,2861.8,1.5361]
[1766059150535,0.002,2862.2,2861.7,3.99759052]
[1766059150855,0.0004,2862.3,2862.1,0.9997]
[1766059151932,0.0004,2862.3,2862.0,1.5361]
[1766059152351,0.002,2862.1,2862.0,1.5361]
[1766059154655,0.0012,2862.1,2861.8,2.54650529]
[1766059154953,0.539,2862.0,2861.5,0.001]
[1766059155855,0.0652,2861.8,2861.5,0.001]
[1766059156053,0.539,2861.6,2861.4,0.001]
[1766059156223,0.6042,2861.9,2861.4,0.001]
[1766059156730,0.6019,2861.9,2861.4,0.001]
[1766059156931,0.539,2861.8,2861.4,0.001]
[1766059157753,0.6019,2861.7,2861.4,0.001]
[1766059161342,1.1409,2861.7,2861.4,0.001]
[1766059168372,0.6019,2861.7,2861.3,0.001]
[1766059168575,0.539,2861.6,2861.3,0.001]
[1766059169879,0.6019,2861.7,2861.3,0.001]
[1766059170051,0.6019,2861.7,2861.3,0.9611]
[1766059170579,7.14283318,2861.8,2861.3,0.9611]
[1766059170580,7.14283318,2861.8,2861.4,0.001]
[1766059170777,8.1927442,2861.8,2861.4,0.001]
[1766059170979,0.002,2861.7,2861.4,0.001]
[1766059174478,0.541,2861.7,2861.4,0.001]
[1766059179485,0.5402,2861.7,2861.4,0.001]
[1766059180888,0.6054,2861.7,2861.4,0.001]
[1766059181994,0.5402,2861.7,2861.4,0.001]
[1766059187392,0.6054,2861.7,2861.4,0.001]
[1766059189298,0.6054,2861.7,2861.4,0.9677]